bitfinex/quotes_SOLUSD_20240623
["timestamp","ask_amount","ask_price","bid_price","bid_amount"]
[1719107143241,6.49,134.88,134.84,100.0]
[1719107143425,7.4136,134.89,134.84,106.49]
[1719107143630,13.9036,134.89,134.84,106.49]
[1719107145447,7.4121,134.92,134.86,100.0]
[1719107145751,6.49,134.91,134.87,0.68227208]
[1719107145946,13.9021,134.92,134.87,0.68227208]
[1719107146531,13.9021,134.92,134.87,7.17227208]
[1719107147132,13.9021,134.92,134.88,1.70983667]
[1719107147838,7.4114,134.93,134.88,101.70983667]
[1719107148150,7.4114,134.93,134.88,108.19983667]
[1719107148151,13.9014,134.93,134.88,108.19983667]
[1719107148649,7.4114,134.93,134.89,6.49]
[1719107148853,260.49,134.94,134.9,101.70958319]
[1719107148854,13.9007,134.94,134.9,101.70958319]
[1719107149258,13.9003,134.95,134.9,108.19958319]
[1719107149844,18.5225,134.98,134.91,6.49]
[1719107150135,13.8998,134.96,134.92,1.72232815]
[1719107150352,7.4098,134.96,134.92,1.72232815]
[1719107150566,13.8998,134.96,134.92,1.72232815]
[1719107150857,7.4098,134.96,134.92,1.72232815]
[1719107151249,13.8998,134.96,134.92,1.72232815]
[1719107152830,7.4092,134.97,134.92,108.21232815]
[1719107153035,13.8992,134.97,134.93,1.7224486]
[1719107153255,7.4092,134.97,134.93,1.7224486]
[1719107153462,6.49,134.96,134.92,100.0]
[1719107153965,13.8996,134.96,134.92,100.0]
[1719107154138,18.5213,134.98,134.9,121.4459]
[1719107154342,6.49,134.93,134.9,121.4459]
[1719107154551,6.49,134.94,134.9,121.4459]
[1719107154759,6.49,134.95,134.9,121.4459]
[1719107154949,7.4099,134.96,134.9,121.4459]
[1719107155155,6.49,134.95,134.9,121.4459]
[1719107155339,13.9001,134.95,134.9,121.4459]
[1719107155533,6.49,134.93,134.9,121.4459]
[1719107156140,6.49,134.92,134.88,100.0]
[1719107156462,6.49,134.92,134.86,127.9359]
[1719107156963,59.8215,134.96,134.88,100.0]
[1719107156964,7.4107,134.94,134.88,100.0]
[1719107157158,59.8215,134.96,134.88,106.49]
[1719107157159,6.49,134.93,134.88,106.49]
[1719107157539,6.49,134.94,134.89,6.49]
[1719107158333,6.49,134.94,134.9,100.0]
[1719107159259,13.9002,134.95,134.9,106.49]
[1719107159457,6.49,134.95,134.9,106.49]
[1719107159964,6.49,134.94,134.9,100.0]
[1719107161364,6.49,134.95,134.91,21.4459]
[1719107161556,27.4095,134.97,134.91,27.9359]
[1719107161557,6.49,134.96,134.91,27.9359]
[1719107161862,6.49,134.96,134.92,100.0]
[1719107162446,6.49,134.96,134.91,27.9359]
[1719107162644,6.49,134.95,134.91,21.4459]
[1719107163563,6.49,134.94,134.91,21.4459]
[1719107163768,13.9007,134.94,134.89,6.49]
[1719107164264,6.49,134.94,134.9,100.0]
[1719107164953,6.49,134.95,134.9,100.0]
[1719107165353,6.49,134.95,134.9,106.49]
[1719107166668,6.49,134.94,134.9,100.0]
[1719107167375,6.49,134.94,134.89,6.49]
[1719107167946,6.49,134.95,134.9,106.49]
[1719107168147,6.49,134.96,134.9,106.49]
[1719107168547,13.8997,134.96,134.9,106.49]
[1719107169058,6.49,134.95,134.9,106.49]
[1719107169643,6.49,134.95,134.9,100.0]
[1719107170466,6.49,134.95,134.89,6.49]
[1719107170671,6.49,134.93,134.88,121.6408]
[1719107170847,6.49,134.92,134.88,121.6408]
[1719107171667,6.49,134.93,134.88,121.6408]
[1719107173255,13.9014,134.93,134.87,6.49]
[1719107173448,6.49,134.9,134.85,21.6408]
[1719107173644,6.49,134.89,134.84,106.49]
[1719107176657,6.49,134.9,134.84,106.49]
[1719107176877,6.49,134.9,134.85,6.49]
[1719107177483,6.49,134.91,134.86,100.0]
[1719107177679,15.007,134.95,134.87,6.49]
[1719107177885,6.49,134.93,134.88,106.49]
[1719107178080,6.49,134.93,134.88,100.0]
[1719107178477,13.8752,134.97,134.9,106.49]
[1719107178683,6.49,134.96,134.9,106.49]
[1719107179079,6.49,134.96,134.91,6.49]
[1719107180379,7.4091,134.97,134.91,6.49]
[1719107180700,6.49,134.96,134.91,6.49]
[1719107185885,7.4091,134.97,134.91,6.49]
[1719107186093,6.49,134.96,134.91,6.49]
[1719107188291,7.4091,134.97,134.91,6.49]
[1719107188487,6.49,134.97,134.92,100.0]
[1719107188912,6.49,134.97,134.92,106.49]
[1719107189420,295.513546,135.03,134.92,106.49]
[1719107189621,26.49,135.01,134.95,6.49]
[1719107189801,15.7446,135.03,134.96,106.49]
[1719107190002,23.1506,135.03,134.97,6.49]
[1719107190205,6.49,135.02,134.97,6.49]
[1719107190503,7.4054,135.04,134.97,6.49]
[1719107190700,6.49,135.03,134.97,6.49]
[1719107190897,16.19316622,135.04,134.98,6.49]
[1719107191095,13.8958,135.03,134.98,6.49]
[1719107191297,13.8958,135.03,134.96,100.0]
[1719107191514,13.8958,135.03,134.98,6.49]
[1719107192201,13.8958,135.03,134.97,6.49]
[1719107192598,7.4058,135.03,134.97,6.49]
[1719107192802,6.49,135.03,134.97,6.49]
[1719107193312,13.896,135.03,134.97,6.49]
[1719107194405,7.4063,135.02,134.97,6.49]
[1719107195416,25.96456547,135.06,134.98,106.49]
[1719107195598,7.4058,135.03,134.98,106.49]
[1719107195919,13.8958,135.03,134.98,106.49]
[1719107196808,13.8958,135.03,134.98,100.0]
[1719107197725,7.4063,135.02,134.98,100.0]
[1719107198111,13.897,135.01,134.96,106.49]
[1719107199119,6.49,135.01,134.96,106.49]
[1719107199596,13.8968,135.01,134.96,106.49]
[1719107201122,13.8964,135.02,134.97,12.6413]
[1719107201327,13.8958,135.03,134.98,106.49]
[1719107201527,7.4058,135.03,134.98,106.49]
[1719107201903,6.49,135.04,134.99,6.49]
[1719107201904,7.4054,135.04,134.99,6.49]
[1719107202111,7.4054,135.04,135.0,100.0]
[1719107202310,7.4049,135.05,135.01,6.49]
[1719107202616,13.8949,135.05,135.0,106.49]
[1719107206825,7.4049,135.05,135.0,106.49]
[1719107207044,13.8949,135.05,135.0,106.49]
[1719107208362,7.4049,135.05,135.0,106.49]
[1719107208540,7.4049,135.05,135.01,6.49]
[1719107209450,13.8942,135.06,135.01,6.49]
[1719107209647,7.4042,135.06,135.01,6.49]
[1719107209849,13.8942,135.06,135.01,6.49]
[1719107211235,7.4042,135.06,135.01,6.49]
[1719107211435,13.8942,135.06,135.01,6.49]
[1719107211935,6.49,135.05,135.0,100.0]
[1719107212232,6.49,135.05,135.0,106.49]
[1719107213657,7.4042,135.06,135.0,106.49]
[1719107213873,6.49,135.05,135.0,106.49]
[1719107215566,13.8942,135.06,135.0,106.49]
[1719107216442,6.49,135.06,135.0,106.49]
[1719107217039,6.49,135.06,135.01,6.49]
[1719107219059,7.4032,135.08,135.02,122.7857]
[1719107219247,7.4024,135.09,135.03,6.49]
[1719107219446,6.49,135.08,135.03,6.49]
[1719107219753,13.8924,135.09,135.04,6.49]
[1719107220264,6.49,135.1,135.05,6.49]
[1719107220471,6.49,135.1,135.04,100.0]
[1719107220659,6.49,135.1,135.04,106.49]
[1719107221347,13.8919,135.1,135.04,106.49]
[1719107224270,8.2768964,135.11,135.04,106.49]
[1719107224472,6.49,135.1,135.04,106.49]
[1719107224648,8.2768964,135.11,135.04,106.49]
[1719107224968,7.3652964,135.11,135.06,106.49]
[1719107225442,7.3652964,135.11,135.06,100.0]
[1719107226151,0.8752964,135.11,135.06,100.0]
[1719107226351,7.3652964,135.11,135.06,106.49]
[1719107228755,14.7667964,135.11,135.06,100.0]
[1719107228951,0.8752964,135.11,135.07,21.5133]
[1719107229280,0.8752964,135.11,135.07,28.0033]
[1719107229482,7.3652964,135.11,135.07,21.5133]
[1719107233289,0.8752964,135.11,135.07,21.5133]
[1719107235261,6.49,135.09,135.04,100.0]
[1719107235469,6.49,135.08,135.04,100.0]
[1719107235986,6.49,135.09,135.04,106.49]
[1719107236567,6.49,135.1,135.05,6.49]
[1719107236959,7.3652964,135.11,135.06,106.49]
[1719107237163,0.8752964,135.11,135.06,106.49]
[1719107238173,7.3652964,135.11,135.06,106.49]
[1719107238678,7.3652964,135.11,135.06,100.0]
[1719107242990,6.49,135.08,135.04,100.0]
[1719107243568,6.49,135.07,135.03,21.5133]
[1719107246679,6.49,135.08,135.03,28.0033]
[1719107247901,8.2767964,135.11,135.04,100.0]
[1719107248208,26.49,135.1,135.05,6.49]
[1719107248572,26.49,135.1,135.03,21.5133]
[1719107248573,0.8752964,135.11,135.06,106.49]
[1719107248772,7.3652964,135.11,135.06,106.49]
[1719107250075,14.7668964,135.11,135.06,6.49]
[1719107250380,6.49,135.1,135.05,6.49]
[1719107250580,6.49,135.09,135.04,106.49]
[1719107252281,6.49,135.08,135.04,100.0]
[1719107253209,6.49,135.09,135.04,106.49]
[1719107253620,6.49,135.1,135.04,106.49]
[1719107254518,0.8752964,135.11,135.06,100.0]
[1719107254823,7.3652964,135.11,135.06,106.49]
[1719107254988,7.3652964,135.11,135.06,100.0]
[1719107255583,6.49,135.1,135.06,100.0]
[1719107256410,6.49,135.09,135.04,100.0]
[1719107256702,6.49,135.08,135.04,100.0]
[1719107258483,0.8752964,135.11,135.03,21.5133]
[1719107258686,6.49,135.06,135.0,121.4482]
[1719107258911,6.49,135.05,135.0,127.9382]
[1719107259108,6.49,135.04,135.0,121.4482]
[1719107259820,7.4037,135.07,135.0,121.4482]
[1719107260021,6.49,135.05,135.0,127.9382]
[1719107260824,7.4037,135.07,135.0,127.9382]
[1719107261123,6.49,135.07,135.02,106.49]
[1719107262423,6.49,135.06,135.01,6.49]
[1719107263821,6.49,135.06,135.0,121.4482]
[1719107264028,6.49,135.06,135.01,6.49]
[1719107265619,6.49,135.04,135.0,121.4482]
[1719107266628,6.49,135.05,135.0,127.9382]
[1719107274120,7.4038,135.07,135.0,127.9382]
[1719107274321,6.49,135.05,135.0,127.9382]
[1719107275812,6.49,135.05,135.0,121.4482]
[1719107276226,6.49,135.04,135.0,121.4482]
[1719107276423,6.49,135.03,135.0,121.4482]
[1719107277742,7.4038,135.07,135.0,121.4482]
[1719107277943,7.4038,135.07,135.0,127.9382]
[1719107277944,6.49,135.05,135.0,127.9382]
[1719107278309,7.4038,135.07,135.0,127.9382]
[1719107278310,6.49,135.04,135.0,121.4482]
[1719107278737,6.49,135.05,135.0,127.9382]
[1719107279009,6.49,135.04,135.0,121.4482]
[1719107281119,5.99,135.04,135.0,121.4482]
[1719107281420,5.99,135.04,135.0,127.9382]
[1719107281641,6.49,135.05,135.0,127.9382]
[1719107282425,23.58301293,135.1,135.02,106.49]
[1719107282628,6.49,135.09,135.04,100.0]
[1719107283827,7.4019,135.1,135.04,100.0]
[1719107284028,6.49,135.09,135.04,100.0]
[1719107284235,13.8925,135.09,135.04,100.0]
[1719107284428,6.49,135.08,135.04,100.0]
[1719107285051,6.49,135.07,135.04,100.0]
[1719107286533,6.49,135.08,135.04,100.0]
[1719107286949,6.49,135.08,135.02,100.0]
[1719107286950,13.8932,135.08,135.02,100.0]
[1719107287129,6.49,135.06,135.02,100.0]
[1719107287550,44.4648,135.1,135.0,27.9382]
[1719107287551,6.49,135.04,135.0,121.4482]
[1719107287730,13.799632,135.03,135.0,121.4482]
[1719107287936,6.49,135.03,135.0,121.4482]
[1719107288555,6.49,135.03,134.98,100.0]
[1719107288748,7.4063,135.02,134.96,128.6567]
[1719107288955,6.49,135.0,134.96,122.1667]
[1719107289646,6.49,135.0,134.96,22.1667]
[1719107291751,6.49,135.0,134.96,122.1667]
[1719107291936,7.4065,135.02,134.96,128.6567]
[1719107292136,6.49,135.01,134.96,128.6567]
[1719107292535,6.49,135.03,134.98,100.0]
[1719107293147,13.8959,135.03,134.97,6.49]
[1719107293350,13.8964,135.02,134.97,6.49]
[1719107294355,6.49,135.01,134.96,122.1667]
[1719107294559,6.49,135.01,134.96,28.6567]
[1719107295261,6.49,135.0,134.96,122.1667]
[1719107295461,6.49,135.01,134.96,128.6567]
[1719107296561,7.4054,135.04,134.98,100.0]
[1719107296749,6.49,135.03,134.98,106.49]
[1719107297347,15.10585118,135.06,135.0,100.0]
[1719107297550,6.49,135.06,135.01,6.49]
[1719107299140,13.8941,135.06,135.01,6.49]
[1719107303185,7.4046,135.05,135.01,6.49]
[1719107304169,8.79863644,135.08,134.98,100.0]
[1719107304348,16.3205,135.09,134.98,106.49]
[1719107304349,7.4059,135.03,134.98,106.49]
[1719107304548,13.8959,135.03,134.98,106.49]
[1719107305653,6.49,135.03,134.98,106.49]
[1719107305968,6.49,135.05,135.0,106.49]
[1719107306163,7.4048,135.05,135.0,6.49]
[1719107306364,6.49,135.03,134.98,106.49]
[1719107306670,6.49,135.04,135.0,100.0]
[1719107307250,13.8949,135.05,135.0,100.0]
[1719107307580,13.8947,135.05,135.0,106.49]
[1719107307951,13.8947,135.05,135.0,100.0]
[1719107308960,6.49,135.05,135.0,100.0]
[1719107310370,6.49,135.02,134.98,100.0]
[1719107311373,6.49,135.02,134.97,6.49]
[1719107312159,7.404,135.07,134.99,106.49]
[1719107312374,6.49,135.04,134.99,106.49]
[1719107313081,6.49,135.03,134.99,100.0]
[1719107313278,6.49,135.03,134.97,100.0]
[1719107313577,7.4054,135.04,134.97,106.49]
[1719107313879,6.49,135.03,134.98,6.49]
[1719107315955,13.8958,135.03,134.97,100.0]
[1719107316155,6.49,135.02,134.97,106.49]
[1719107316668,6.49,135.02,134.97,100.0]
[1719107318286,6.49,135.02,134.97,106.49]
[1719107318652,6.49,135.03,134.98,6.49]
[1719107320479,13.8957,135.03,134.98,6.49]
[1719107320794,6.49,135.02,134.97,106.49]
[1719107321280,7.4057,135.03,134.97,106.49]
[1719107321470,13.8957,135.03,134.98,6.49]
[1719107325174,7.4063,135.02,134.98,6.49]
[1719107325474,13.896,135.03,134.98,6.49]
[1719107325678,13.896,135.03,134.99,1.47795572]
[1719107326381,15.10510956,135.08,135.03,100.0]
[1719107326565,13.8934,135.08,135.03,100.0]
[1719107326882,13.8937,135.07,135.02,6.49]
[1719107327596,6.49,135.06,135.01,128.8276]
[1719107328999,6.49,135.06,135.03,100.0]
[1719107329300,0.8752964,135.11,135.04,6.49]
[1719107329480,0.8752964,135.11,135.05,100.0]
[1719107329692,6.49,135.09,135.05,100.0]
[1719107329885,6.49,135.09,135.04,6.49]
[1719107330283,7.4019,135.1,135.04,6.49]
[1719107330505,6.49,135.09,135.04,6.49]
[1719107331605,6.49,135.08,135.03,100.0]
[1719107332287,6.49,135.08,135.03,106.49]
[1719107332700,6.49,135.09,135.03,106.49]
[1719107333405,6.49,135.09,135.05,100.0]
[1719107333608,13.8931,135.08,135.03,106.49]
[1719107333802,6.49,135.08,135.03,106.49]
[1719107334601,0.8752964,135.11,135.03,106.49]
[1719107334804,13.893,135.08,135.03,106.49]
[1719107335584,6.49,135.08,135.03,106.49]
[1719107336709,13.893,135.08,135.03,106.49]
[1719107338100,7.4026,135.09,135.03,106.49]
[1719107338324,6.49,135.08,135.03,106.49]
[1719107340013,13.8926,135.09,135.04,6.49]
[1719107342213,8.2770964,135.11,135.05,100.0]
[1719107342412,0.8752964,135.11,135.07,100.0]
[1719107342618,0.8752964,135.11,135.07,106.49]
[1719107342996,0.8752964,135.11,135.07,100.0]
[1719107343210,8.2765964,135.11,135.07,100.0]
[1719107343418,0.8752964,135.11,135.07,100.0]
[1719107345924,7.3652964,135.11,135.07,100.0]
[1719107346729,0.8752964,135.11,135.07,100.0]
[1719107347024,7.3652964,135.11,135.07,100.0]
[1719107349301,14.7666964,135.11,135.07,100.0]
[1719107350505,8.2766964,135.11,135.07,100.0]
[1719107350827,14.7666964,135.11,135.07,100.0]
[1719107351727,7.3652964,135.11,135.07,100.0]
[1719107352117,0.8752964,135.11,135.07,100.0]
[1719107352323,7.3652964,135.11,135.07,100.0]
[1719107352624,0.8752964,135.11,135.07,100.0]
[1719107355315,8.2766964,135.11,135.07,100.0]
[1719107355518,14.7666964,135.11,135.07,100.0]
[1719107356429,7.3652964,135.11,135.07,100.0]
[1719107361243,13.8933,135.08,135.03,100.0]
[1719107361421,13.8931,135.08,135.03,100.0]
[1719107362734,6.49,135.07,135.03,100.0]
[1719107363511,6.49,135.08,135.03,100.0]
[1719107364735,7.4025,135.09,135.03,100.0]
[1719107364928,6.49,135.08,135.03,100.0]
[1719107366323,6.4024,135.09,135.01,100.0]
[1719107366527,6.49,135.05,135.01,100.0]
[1719107367432,6.49,135.05,135.0,6.49]
[1719107367634,6.49,135.04,134.99,106.49]
[1719107367941,6.49,135.04,134.99,100.0]
[1719107368125,6.49,135.04,134.99,106.49]
[1719107373652,6.49,135.05,135.0,6.49]
[1719107375568,6.49,135.04,134.99,100.0]
[1719107375737,6.49,135.04,134.99,106.49]
[1719107376350,6.49,135.04,134.99,100.0]
[1719107377635,6.49,135.05,134.99,100.0]
[1719107377968,6.49,135.05,135.01,100.0]
[1719107378134,21.9347,135.06,135.01,100.0]
[1719107378342,21.9347,135.06,135.01,106.49]
[1719107379241,21.9347,135.06,135.01,100.0]
[1719107379442,21.9347,135.06,135.01,106.49]
[1719107381367,29.339,135.06,135.01,106.49]
[1719107381766,15.4447,135.06,135.01,106.49]
[1719107381945,21.9347,135.06,135.01,106.49]
[1719107382838,13.8938,135.07,135.01,106.49]
[1719107384171,7.4041,135.06,135.01,106.49]
[1719107385765,13.8941,135.06,135.01,106.49]
[1719107387372,13.8941,135.06,135.03,100.0]
[1719107388976,13.8936,135.07,135.03,100.0]
[1719107390478,7.4042,135.06,135.03,100.0]
[1719107390782,13.8942,135.06,135.03,100.0]
[1719107391155,7.4027,135.09,135.05,100.0]
[1719107391378,13.8927,135.09,135.05,100.0]
[1719107392674,13.8927,135.09,135.04,6.49]
[1719107393668,6.49,135.08,135.03,106.49]
[1719107394080,13.8931,135.08,135.03,106.49]
[1719107394575,13.8931,135.08,135.03,100.0]
[1719107394973,7.4031,135.08,135.03,100.0]
[1719107395171,13.8931,135.08,135.03,100.0]
[1719107396080,6.49,135.08,135.03,100.0]
[1719107397972,6.49,135.08,135.03,106.49]
[1719107398878,23.6025,135.1,135.03,106.49]
[1719107399184,6.49,135.09,135.04,6.49]
[1719107399780,16.2004,135.1,135.04,6.49]
[1719107399977,16.2004,135.1,135.05,100.0]
[1719107400180,6.49,135.09,135.05,100.0]
[1719107401971,16.2004,135.1,135.05,100.0]
[1719107402173,0.8752964,135.11,135.05,106.49]
[1719107402391,6.49,135.1,135.05,106.49]
[1719107403594,0.8752964,135.11,135.07,100.0]
[1719107403891,6.49,135.1,135.07,100.0]
[1719107404395,13.8919,135.1,135.05,106.49]
[1719107404570,6.49,135.09,135.05,100.0]
[1719107406390,6.49,135.08,135.05,100.0]
[1719107408400,7.4019,135.1,135.05,100.0]
[1719107408572,6.49,135.08,135.05,100.0]
[1719107408967,7.4019,135.1,135.05,100.0]
[1719107409194,6.49,135.08,135.05,100.0]
[1719107409598,6.49,135.08,135.03,106.49]
[1719107410196,6.49,135.08,135.03,100.0]
[1719107413407,6.49,135.08,135.03,106.49]
[1719107413886,6.49,135.08,135.03,100.0]
[1719107414086,6.49,135.07,135.03,100.0]
[1719107415084,6.49,135.08,135.03,106.49]
[1719107415504,6.49,135.08,135.03,100.0]
[1719107417995,0.8752964,135.11,135.05,106.49]
[1719107418205,6.49,135.1,135.05,106.49]
[1719107418706,7.3652964,135.11,135.06,6.49]
[1719107419082,6.49,135.1,135.05,106.49]
[1719107419682,6.49,135.1,135.05,100.0]
[1719107419883,13.892,135.1,135.05,100.0]
[1719107420179,6.49,135.09,135.05,100.0]
[1719107422222,6.49,135.1,135.05,106.49]
[1719107424104,0.8752964,135.11,135.07,100.0]
[1719107424290,7.3652964,135.11,135.07,100.0]
[1719107425324,0.8752964,135.11,135.07,100.0]
[1719107425532,7.3652964,135.11,135.07,100.0]
[1719107425713,0.8752964,135.11,135.07,100.0]
[1719107434233,0.8752964,135.11,135.09,100.0]
[1719107434615,0.8752964,135.11,135.09,106.49]
[1719107434820,0.8752964,135.11,135.1,6.49]
[1719107435630,0.8752964,135.11,135.09,100.0]
[1719107435816,0.8752964,135.11,135.09,106.49]
[1719107436721,0.8752964,135.11,135.1,28.6071]
[1719107442225,0.8752964,135.11,135.1,28.9471]
[1719107445521,0.8752964,135.11,135.1,28.7771]
[1719107445716,0.8752964,135.11,135.09,100.0]
[1719107445922,0.8752964,135.11,135.09,106.49]
[1719107446340,0.8752964,135.11,135.1,6.49]
[1719107454650,0.8752964,135.11,135.09,100.0]
[1719107454854,0.8752964,135.11,135.1,6.49]
[1719107460631,6.49,135.15,135.1,6.49]
[1719107460831,23.94790709,135.19,135.11,100.0]
[1719107461055,6.49,135.16,135.11,106.49]
[1719107462252,7.3977,135.18,135.11,106.49]
[1719107462454,16.2194,135.19,135.13,100.0]
[1719107462755,6.49,135.18,135.13,100.0]
[1719107463835,16.2194,135.19,135.15,100.0]
[1719107464050,22.7094,135.19,135.15,100.0]
[1719107467364,23.60473638,135.23,135.15,100.0]
[1719107467560,23.60473638,135.23,135.15,106.49]
[1719107467561,6.49,135.2,135.15,106.49]
[1719107469545,13.8864,135.2,135.15,106.49]
[1719107469853,6.49,135.19,135.14,6.49]
[1719107470643,6.49,135.2,135.15,100.0]
[1719107472851,7.3981,135.17,135.11,100.0]
[1719107473050,6.49,135.17,135.12,6.49]
[1719107473381,6.49,135.16,135.11,100.0]
[1719107473666,13.8889,135.16,135.1,22.1813]
[1719107473871,6.49,135.15,135.11,100.0]
[1719107474043,6.49,135.15,135.11,106.49]
[1719107474785,7.3982,135.17,135.11,106.49]
[1719107475062,6.49,135.16,135.12,6.49]
[1719107475264,13.8882,135.17,135.12,6.49]
[1719107475641,13.8882,135.17,135.13,1.47761426]
[1719107476460,13.8882,135.17,135.11,106.49]
[1719107477265,7.3986,135.16,135.11,106.49]
[1719107477679,13.8886,135.16,135.11,106.49]
[1719107478766,6.49,135.15,135.11,100.0]
[1719107479483,13.8886,135.16,135.11,106.49]
[1719107480479,7.3998,135.14,135.09,100.0]
[1719107480693,13.8898,135.14,135.09,100.0]
[1719107480859,13.8898,135.14,135.09,106.49]
[1719107481565,6.49,135.14,135.09,106.49]
[1719107483085,6.49,135.14,135.09,100.0]
[1719107483279,13.8897,135.14,135.08,6.49]
[1719107483492,6.49,135.13,135.07,112.9729]
[1719107483669,6.49,135.12,135.07,112.9729]
[1719107484166,6.49,135.13,135.07,112.9729]
[1719107484591,6.49,135.14,135.09,6.49]
[1719107484763,7.4003,135.13,135.07,106.4829]
[1719107484967,7.4003,135.13,135.08,6.49]
[1719107484968,6.49,135.13,135.08,6.49]
[1719107485588,6.49,135.12,135.07,112.9729]
[1719107486864,6.49,135.12,135.07,100.0]
[1719107487062,6.49,135.11,135.07,100.0]
[1719107487269,6.49,135.1,135.05,100.0]
[1719107487887,6.49,135.1,135.05,106.49]
[1719107488307,6.49,135.11,135.06,6.49]
[1719107489973,6.49,135.11,135.07,100.0]
[1719107491492,6.49,135.11,135.06,6.49]
[1719107492482,6.49,135.11,135.07,100.0]
[1719107494082,6.49,135.11,135.06,6.49]
[1719107494888,6.49,135.11,135.05,100.0]
[1719107495094,6.49,135.09,135.05,100.0]
[1719107496475,6.49,135.11,135.06,6.49]
[1719107497094,23.0405,135.13,135.07,106.49]
[1719107497295,6.49,135.12,135.07,100.0]
[1719107497598,6.49,135.12,135.07,106.49]
[1719107497894,24.70952969,135.17,135.07,106.49]
[1719107498081,6.49,135.15,135.1,106.49]
[1719107499184,13.8893,135.15,135.1,6.49]
[1719107499385,6.49,135.14,135.09,6.49]
[1719107502203,6.49,135.14,135.08,106.49]
[1719107503205,7.3995,135.15,135.08,112.671]
[1719107503402,7.3995,135.15,135.09,6.49]
[1719107503703,6.49,135.14,135.09,6.49]
[1719107503895,6.49,135.14,135.1,100.0]
[1719107504304,15.6402,135.17,135.1,106.49]
[1719107504515,6.49,135.16,135.11,7.89403365]
[1719107505081,23.0384,135.17,135.11,7.89403365]
[1719107505384,7.3973,135.19,135.12,106.49]
[1719107505587,6.49,135.18,135.13,7.89394896]
[1719107506497,13.8875,135.18,135.13,7.89394896]
[1719107508499,13.8875,135.18,135.13,1.40394896]
[1719107508697,6.49,135.17,135.13,1.40394896]
[1719107509227,13.8881,135.17,135.13,1.40394896]
[1719107510192,13.8895,135.15,135.1,106.49]
[1719107510514,6.49,135.15,135.1,106.49]
[1719107510695,6.49,135.15,135.12,100.0]
[1719107511190,6.49,135.16,135.12,100.0]
[1719107511590,6.49,135.17,135.12,106.49]
[1719107512004,13.8882,135.17,135.12,106.49]
[1719107512315,6.49,135.16,135.12,100.0]
[1719107513688,39.6608,135.21,135.12,116.1067]
[1719107513883,6.49,135.17,135.12,122.5967]
[1719107514691,13.8878,135.18,135.13,6.49]
[1719107514898,13.8878,135.18,135.14,100.0]